bitfinex-derivatives/quotes_SOLF0:USTF0_20260218
["timestamp","ask_amount","ask_price","bid_price","bid_amount"]
[1771429026042,8.93567763,83.238,83.181,8.94337752]
[1771429026344,8.93567763,83.238,83.162,8.94337752]
[1771429026644,6.20876241,83.26,83.204,8.94337752]
[1771429026843,75.76,83.259,83.181,8.94337752]
[1771429027350,75.76,83.258,83.21,10.8197]
[1771429027550,75.76,83.258,83.203,8.94337752]
[1771429027751,75.76,83.257,83.181,8.94337752]
[1771429028353,6.20876241,83.24,83.181,8.94337752]
[1771429028551,0.81940233,83.238,83.181,8.94337752]
[1771429028747,0.81940233,83.235,83.18,10.8236]
[1771429029055,0.81940233,83.235,83.151,8.94337752]
[1771429029253,6.20876241,83.25,83.151,8.94337752]
[1771429029254,6.20876241,83.22,83.171,10.8248]
[1771429029454,0.98007006,83.219,83.151,8.94337752]
[1771429029751,0.92543922,83.217,83.151,8.94337752]
[1771429029950,7.13420163,83.2,83.15,10.8274]
[1771429030151,0.92543922,83.199,83.133,8.94337752]
[1771429030353,76.66543922,83.199,83.16,10.8262]
[1771429030542,36.1,83.264,83.116,75.74]
[1771429030543,20.69023689,83.28,83.161,8.94337752]
[1771429030744,20.69023689,83.28,83.113,505.5125]
[1771429030745,10.8009,83.356,83.244,10.8153]
[1771429030944,75.74,83.362,83.239,168.2489]
[1771429031148,0.18565095,83.335,83.26,6.20876241]
[1771429031352,80.74,83.385,83.283,2.52529537]
[1771429031545,6.20876241,83.37,83.285,2.86811109]
[1771429031746,6.20876241,83.35,83.25,168.2263]
[1771429031955,6.20876241,83.35,83.265,2.86811109]
[1771429032151,6.20876241,83.36,83.271,168.1837]
[1771429032350,6.20876241,83.34,83.274,10.8113]
[1771429033248,5.0,83.385,83.274,10.8113]
[1771429033249,8.93567763,83.342,83.274,13.74033536]
[1771429033555,6.20876241,83.35,83.285,2.05779276]
[1771429033953,6.20876241,83.35,83.25,174.43516241]
[1771429033954,15.14444004,83.33,83.263,2.05779276]
[1771429034157,8.93567763,83.309,83.245,10.8151]
[1771429034454,8.93567763,83.309,83.241,2.05779276]
[1771429034650,8.93567763,83.307,83.243,12.74887535]
[1771429034852,8.93567763,83.307,83.243,1.93337535]
[1771429035053,8.93567763,83.307,83.225,5.04656053]
[1771429035254,8.93567763,83.307,83.225,17.6703348]
[1771429035458,8.62478838,83.305,83.225,17.6703348]
[1771429035760,8.62478838,83.304,83.226,1.51117997]
[1771429036059,6.1808193,83.3,83.231,1.51117997]
[1771429036558,6.1808193,83.35,83.231,1.51117997]
[1771429036559,167.9385,83.394,83.231,1.51117997]
[1771429036757,167.9385,83.394,83.225,5.04656053]
[1771429036758,5.0,83.435,83.311,1.40463579]
[1771429036957,75.68,83.43,83.32,8.36163934]
[1771429037256,6.1808193,83.4,83.331,10.804]
[1771429038159,6.1808193,83.43,83.35,8.36163934]
[1771429038366,6.1808193,83.43,83.351,78.64]
[1771429038661,6.1808193,83.43,83.357,10.8006]
[1771429038848,5.0,83.435,83.34,6.1808193]
[1771429038849,8.62478838,83.409,83.34,6.1808193]
[1771429039054,8.62478838,83.409,83.34,81.8408193]
[1771429039251,8.62478838,83.419,83.351,8.36163934]
[1771429039451,8.62478838,83.419,83.335,78.68]
[1771429039652,8.62478838,83.419,83.342,10.8026]
[1771429040155,8.62478838,83.419,83.253,276.26]
[1771429040156,8.62478838,83.399,83.32,75.64]
[1771429040351,8.62478838,83.399,83.324,10.8049]
[1771429040553,8.62478838,83.399,83.325,8.36163934]
[1771429040758,8.62478838,83.419,83.333,10.8038]
[1771429040955,6.1808193,83.4,83.333,10.8038]
[1771429041760,8.62478838,83.399,83.333,10.8038]
[1771429042060,8.62478838,83.399,83.266,168.1932]
[1771429042061,6.1808193,83.39,83.311,8.36163934]
[1771429042560,84.26478838,83.419,83.331,8.36163934]
[1771429042761,8.62478838,83.418,83.331,8.36163934]
[1771429043263,8.62478838,83.418,83.333,8.36163934]
[1771429043760,8.62478838,83.418,83.351,10.8013]
[1771429043960,75.62,83.427,83.351,10.8013]
[1771429043961,5.0,83.435,83.351,8.36163934]
[1771429044465,8.62478838,83.434,83.381,10.7975]
[1771429044663,8.62478838,83.434,83.353,8.36163934]
[1771429045455,5.0,83.435,83.328,168.0683]
[1771429045456,5.0,83.435,83.373,8.36163934]
[1771429045959,13.62478838,83.435,83.373,87.16163934]
[1771429046167,8.62478838,83.434,83.373,8.36163934]
[1771429046361,6.1808193,83.43,83.365,78.8]
[1771429046959,6.1808193,83.43,83.364,78.8]
[1771429047164,8.62478838,83.429,83.355,8.36163934]
[1771429047363,8.62478838,83.429,83.357,8.36163934]
[1771429047959,8.62478838,83.419,83.36,10.8002]
[1771429048265,8.62478838,83.419,83.34,6.1808193]
[1771429048464,8.62478838,83.419,83.341,8.36163934]
[1771429049862,8.62478838,83.419,83.355,10.8008]
[1771429050164,20.31686701,83.493,83.376,167.9712]
[1771429050368,20.31686701,83.493,83.39,6.1808193]
[1771429050369,8.62478838,83.479,83.39,6.1808193]
[1771429050667,8.62478838,83.478,83.391,8.36163934]
[1771429051267,8.62478838,83.478,83.383,75.56]
[1771429051268,8.62478838,83.478,83.411,8.36163934]
[1771429051667,75.56,83.506,83.393,78.82]
[1771429051668,8.62478838,83.534,83.44,167.8437]
[1771429051860,8.838e-05,83.535,83.47,6.1808193]
[1771429052060,8.838e-05,83.535,83.429,167.8646]
[1771429052061,8.838e-05,83.535,83.46,6.1808193]
[1771429052459,8.838e-05,83.535,83.456,75.56]
[1771429052664,8.838e-05,83.535,83.41,167.9036]
[1771429052965,8.838e-05,83.535,83.45,6.1808193]
[1771429053163,8.838e-05,83.535,83.468,10.7862]
[1771429053472,6.1808193,83.52,83.405,167.9143]
[1771429053765,75.56,83.529,83.44,6.1808193]
[1771429053963,6.1808193,83.52,83.44,6.1808193]
[1771429054165,12.86243025,83.519,83.453,10.7882]
[1771429054366,12.86243025,83.519,83.43,6.1808193]
[1771429054871,12.86243025,83.519,83.378,167.9676]
[1771429054872,12.85733205,83.499,83.41,6.1808193]
[1771429055071,19.03815135,83.48,83.41,6.1808193]
[1771429055463,19.03815135,83.48,83.422,10.7922]
[1771429056074,12.89140036,83.479,83.41,10.7937]
[1771429056573,6.1808193,83.5,83.43,6.1808193]
[1771429056769,6.1808193,83.5,83.391,167.9415]
[1771429056770,6.1808193,83.5,83.397,75.52]
[1771429056975,12.886219,83.501,83.42,6.1808193]
[1771429057171,12.886219,83.489,83.4,6.1808193]
[1771429057673,75.52,83.508,83.42,6.1808193]
[1771429057973,6.1808193,83.49,83.42,6.1808193]
[1771429058174,12.81801021,83.489,83.4,6.1808193]
[1771429058373,12.81801021,83.489,83.42,6.1808193]
[1771429058574,12.81131482,83.499,83.428,10.7914]
[1771429058776,12.81131482,83.497,83.428,10.7914]
[1771429058977,12.81131482,83.497,83.4,6.1808193]
[1771429059368,10.7845,83.483,83.417,10.7929]
[1771429059573,6.1808193,83.48,83.417,10.7929]
[1771429059973,10.7858,83.473,83.411,10.7936]
[1771429060679,10.7858,83.473,83.4,6.1808193]
[1771429060680,12.74473859,83.534,83.4,174.1047193]
[1771429060870,12.74473859,83.529,83.45,6.1808193]
[1771429061067,12.74473859,83.529,83.469,10.7861]
[1771429061281,239.7,83.584,83.49,6.1808193]
[1771429061282,12.74473859,83.552,83.49,6.1808193]
[1771429061679,13.23169463,83.574,83.499,10.7822]
[1771429062679,13.23169463,83.574,83.49,6.1808193]
[1771429063070,5.0,83.585,83.51,6.1808193]
[1771429063983,5.0,83.585,83.476,167.7714]
[1771429063984,5.0,83.585,83.53,6.1808193]
[1771429064274,5.0,83.585,83.485,167.7516]
[1771429064275,5.0,83.585,83.51,6.1808193]
[1771429064480,5.0,83.585,83.53,6.1808193]
[1771429065179,5.0,83.585,83.532,10.778]
[1771429065770,5.0,83.585,83.544,10.7764]
[1771429066269,5.0,83.585,83.54,6.1808193]
[1771429066679,6.1808193,83.61,83.54,6.1808193]
[1771429066880,6.1808193,83.61,83.558,10.7746]
[1771429067079,6.1808193,83.61,83.54,6.1808193]
[1771429067384,12.94993656,83.608,83.52,6.1808193]
[1771429067779,10.7727,83.574,83.507,10.7812]
[1771429068080,6.1808193,83.61,83.53,6.1808193]
[1771429068387,6.1808193,83.61,83.554,10.7751]
[1771429068581,12.94993656,83.617,83.554,10.7751]
[1771429068776,12.94993656,83.617,83.55,6.1808193]
[1771429068980,12.94650544,83.637,83.56,6.1808193]
[1771429069180,6.1808193,83.66,83.571,2.75513693]
[1771429069476,6.1808193,83.7,83.571,2.75513693]
[1771429069477,6.1808193,83.64,83.571,2.75513693]
[1771429069681,6.1808193,83.64,83.501,167.7207]
[1771429069682,6.1808193,83.62,83.551,3.03151684]
[1771429070071,6.1808193,83.62,83.552,10.7754]
[1771429071076,6.1808193,83.62,83.53,6.1808193]
[1771429071077,7.30141818,83.619,83.541,10.7768]
[1771429071479,7.30141818,83.619,83.542,2.97386555]
[1771429071685,7.30141818,83.619,83.551,2.88166548]
[1771429071874,6.1808193,83.63,83.551,2.88166548]
[1771429072080,6.1808193,83.63,83.55,6.1808193]
[1771429072081,7.30141818,83.639,83.564,2.88166548]
[1771429072578,10.767,83.618,83.564,2.88166548]
[1771429072777,10.767,83.618,83.552,2.80308854]
[1771429073478,10.7656,83.629,83.556,2.80308854]
[1771429073681,7.30141818,83.639,83.556,2.80308854]
[1771429074077,10.7659,83.627,83.563,2.72757993]
[1771429074279,6.1808193,83.65,83.538,2.72757993]
[1771429074280,6.1808193,83.62,83.538,2.72757993]
[1771429074481,82.70141818,83.639,83.563,2.74005451]
[1771429074672,7.30141818,83.659,83.571,2.70101946]
[1771429074877,7.30141818,83.657,83.571,2.70101946]
[1771429075082,10.7649,83.635,83.574,10.7726]
[1771429075381,167.3515,83.686,83.571,2.70101946]
[1771429075382,7.30141818,83.639,83.571,2.70101946]
[1771429075584,7.30141818,83.639,83.55,6.1808193]
[1771429075585,7.30141818,83.639,83.551,2.82260566]
[1771429075778,6.1808193,83.62,83.551,2.82260566]
[1771429076184,10.7671,83.617,83.555,2.78385184]
[1771429076381,7.30141818,83.639,83.561,2.78385184]
[1771429076888,10.7673,83.616,83.562,10.7741]
[1771429077183,7.30141818,83.639,83.563,2.75042977]
[1771429077386,10.7669,83.619,83.566,10.7737]
[1771429077574,7.30141818,83.639,83.563,2.75042977]
[1771429078185,10.7684,83.607,83.563,2.75042977]
[1771429078484,6.1808193,83.63,83.563,2.75042977]
[1771429078788,7.06347698,83.629,83.563,2.75042977]
[1771429079482,7.06347698,83.618,83.531,2.79035206]
[1771429079689,6.1808193,83.6,83.531,2.79035206]
[1771429079882,6.1808193,83.6,83.536,10.7775]
[1771429079883,10.7705,83.591,83.536,10.7775]
[1771429080082,7.06347698,83.599,83.531,2.79035206]
[1771429080289,7.06347698,83.619,83.531,2.79035206]
[1771429080483,6.1808193,83.6,83.531,2.79035206]
[1771429080881,7.06347698,83.619,83.541,2.72036366]
[1771429081483,10.7681,83.609,83.555,10.775]
[1771429081692,7.06347698,83.619,83.541,2.72036366]
[1771429082078,10.7683,83.608,83.553,10.7753]
[1771429082489,13.24429628,83.64,83.561,2.81189509]
[1771429082689,10.7659,83.627,83.579,10.7719]
[1771429082993,10.7659,83.627,83.58,2.81189509]
[1771429083181,6.1808193,83.64,83.58,2.81189509]
[1771429083389,7.06347698,83.659,83.581,2.81189509]
[1771429083784,10.7644,83.639,83.585,10.7711]
[1771429084288,6.1808193,83.64,83.594,10.7699]
[1771429084492,7.06347698,83.639,83.559,2.81878472]
[1771429084793,13.24429628,83.61,83.539,2.78268048]
[1771429084983,7.06347698,83.61,83.541,2.78268048]
[1771429085185,6.1808193,83.62,83.541,2.78268048]
[1771429085785,10.7684,83.607,83.559,10.7745]
[1771429085981,7.06347698,83.613,83.541,2.78268048]
[1771429086391,6.1808193,83.62,83.541,2.78268048]
[1771429086880,6.1808193,83.62,83.562,10.7742]
[1771429087292,13.24429628,83.62,83.562,10.7742]
[1771429087694,13.24429628,83.62,83.541,2.78268048]
[1771429087695,7.06347698,83.619,83.541,2.78268048]
[1771429087893,7.06347698,83.619,83.458,167.8059]
[1771429087894,7.06347698,83.619,83.551,2.95982693]
[1771429088085,6.1808193,83.62,83.551,2.95982693]
[1771429088394,7.06347698,83.639,83.551,2.95982693]
[1771429088580,6.1808193,83.65,83.571,2.92792742]
[1771429088780,6.1808193,83.65,83.592,10.7703]
[1771429088781,10.7641,83.641,83.592,10.7703]
[1771429088991,7.06347698,83.649,83.571,2.92792742]
[1771429089380,7.06347698,83.649,83.601,10.7691]
[1771429089586,6.1808193,83.65,83.581,3.25864811]
[1771429090692,7.06347698,83.669,83.591,3.19155057]
[1771429091086,13.24429628,83.65,83.591,3.19155057]
[1771429091381,7.06347698,83.65,83.606,10.7685]
[1771429091587,6.1808193,83.66,83.591,3.19155057]
[1771429091783,7.06347698,83.669,83.601,2.93534684]
[1771429092595,10.761,83.665,83.601,2.93534684]
[1771429092797,7.06347698,83.669,83.601,2.93534684]
[1771429093192,10.7627,83.652,83.604,10.7687]
[1771429093388,7.06347698,83.669,83.604,10.7687]
[1771429093697,7.06347698,83.669,83.59,6.1808193]
[1771429093698,7.06347698,83.669,83.621,10.7665]
[1771429093892,7.06347698,83.669,83.591,2.96911846]
[1771429094093,7.06347698,83.659,83.571,2.9351993]
[1771429094400,7.06347698,83.638,83.571,2.9351993]
[1771429095098,6.1808193,83.66,83.571,2.9351993]
[1771429095299,7.06054589,83.659,83.581,2.88662452]
[1771429095698,6.1808193,83.68,83.581,2.88662452]
[1771429095892,7.06054589,83.679,83.581,2.88662452]
[1771429096391,7.06054589,83.679,83.605,2.86484569]
[1771429096596,7.06054589,83.677,83.605,2.86484569]
[1771429096797,6.1808193,83.66,83.605,2.86484569]
[1771429097898,7.06054589,83.677,83.606,10.7685]
[1771429097899,10.7624,83.654,83.606,10.7685]
[1771429098297,10.7624,83.654,83.605,2.86484569]
[1771429098498,10.7634,83.646,83.605,2.86484569]
[1771429098793,10.7634,83.646,83.586,2.81156746]
[1771429099595,7.06054589,83.649,83.571,2.78119759]
[1771429099992,10.7642,83.64,83.594,10.77]
[1771429100502,7.06054589,83.639,83.571,2.78119759]
[1771429100699,10.7644,83.638,83.591,10.7703]
[1771429101405,7.06054589,83.637,83.591,10.7703]
[1771429101797,10.7652,83.632,83.591,10.7703]
[1771429101998,7.06054589,83.637,83.571,2.78119759]
[1771429103001,10.7651,83.633,83.588,10.7707]
[1771429103905,10.7665,83.622,83.577,10.7721]
[1771429104405,7.06054589,83.609,83.547,2.52089312]
[1771429104605,7.06054589,83.609,83.527,2.49229199]
[1771429105102,167.4283,83.648,83.48,12.10232414]
[1771429105103,7.06054589,83.628,83.561,2.49229199]
[1771429106105,10.7675,83.614,83.569,10.7732]
[1771429106308,7.06054589,83.628,83.561,2.49229199]
[1771429106504,7.06054589,83.609,83.526,2.45477238]
[1771429106804,6.12646802,83.61,83.526,2.45477238]
[1771429106805,7.06054589,83.597,83.526,2.45477238]
[1771429107008,7.06054589,83.589,83.507,2.42385177]
[1771429107206,10.7731,83.571,83.507,2.42385177]
[1771429107412,7.06054589,83.589,83.507,2.42385177]
[1771429107810,10.7729,83.573,83.507,2.42385177]
[1771429108009,7.06054589,83.589,83.507,2.42385177]
[1771429108413,6.12646802,83.57,83.507,2.42385177]
[1771429108709,7.06054589,83.569,83.507,2.42385177]
[1771429109111,7.06054589,83.566,83.516,10.78]
[1771429109510,7.06054589,83.566,83.523,10.7791]
[1771429109813,6.12646802,83.57,83.507,2.42385177]
[1771429110214,10.7714,83.584,83.51,6.12646802]
[1771429110602,7.06054589,83.585,83.51,6.12646802]
[1771429110916,7.06054589,83.585,83.507,2.42385177]
[1771429110917,7.06054589,83.609,83.531,2.44317452]
[1771429111817,10.7696,83.598,83.544,10.7764]
[1771429112003,7.06054589,83.609,83.531,2.44317452]
[1771429112310,10.7697,83.598,83.531,2.44317452]
[1771429112512,7.06054589,83.609,83.531,2.44317452]
[1771429112811,10.7695,83.599,83.55,10.7757]
[1771429113017,7.06054589,83.609,83.531,2.44317452]
[1771429113315,17.82874589,83.609,83.558,10.7747]
[1771429114018,7.06054589,83.609,83.531,2.44317452]
[1771429114516,7.06054589,83.609,83.561,10.7742]
[1771429116314,6.12646802,83.61,83.561,10.7742]
[1771429116315,7.06054589,83.606,83.561,10.7742]
[1771429117015,7.06054589,83.624,83.551,2.47169116]
[1771429117215,7.06054589,83.624,83.525,5.0284346]
[1771429117216,7.06054589,83.624,83.57,6.12646802]
[1771429117514,7.06054589,83.624,83.582,10.7716]
[1771429118707,7.06054589,83.618,83.571,10.773]
[1771429118908,7.06054589,83.618,83.55,2.49056982]
[1771429119814,7.06054589,83.618,83.561,2.43705944]
[1771429120712,17.82764589,83.618,83.569,10.7732]
[1771429121421,14.75160266,83.678,83.538,21.5545]
[1771429121422,7.06054589,83.609,83.538,2.40588509]
[1771429121818,7.06054589,83.609,83.541,2.39477051]
[1771429122416,10.7683,83.608,83.568,10.7734]
[1771429122620,7.06054589,83.609,83.568,10.7734]
[1771429122916,7.06054589,83.609,83.561,10.7743]
[1771429123120,7.06054589,83.629,83.541,2.39477051]
[1771429124122,7.06054589,83.61,83.541,2.39477051]
[1771429124320,7.06054589,83.629,83.551,2.37394309]
[1771429125224,10.90920122,83.672,83.551,2.37394309]
[1771429125225,6.41978541,83.613,83.563,10.774]
[1771429125726,6.41978541,83.613,83.551,2.37394309]
[1771429126818,6.41978541,83.609,83.551,2.37394309]
[1771429127818,6.41978541,83.609,83.54,6.12646802]
[1771429128219,10.7714,83.584,83.533,2.52067846]
[1771429128429,17.19118541,83.584,83.533,2.52067846]
[1771429128626,6.41978541,83.583,83.525,5.0284346]
[1771429128817,10.7733,83.569,83.529,10.7784]
[1771429129214,6.41978541,83.583,83.529,10.7784]
[1771429129428,10.7732,83.57,83.529,10.7784]
[1771429129721,6.41978541,83.569,83.525,5.0284346]
[1771429130128,6.41978541,83.56,83.525,5.0284346]
[1771429132029,10.7762,83.547,83.525,5.0284346]
[1771429132221,6.41978541,83.56,83.525,5.0284346]
[1771429132625,6.41978541,83.56,83.494,2.47292561]
[1771429132822,35.7503353,83.674,83.475,26.60204654]
[1771429132823,6.41978541,83.578,83.501,6.92855665]
[1771429133222,10.7735,83.567,83.524,10.7791]
[1771429133418,6.41978541,83.578,83.501,6.92855665]
[1771429134826,10.7745,83.56,83.516,10.7801]
[1771429135032,6.41978541,83.578,83.501,6.92855665]
[1771429135341,10.7734,83.569,83.524,10.7791]
[1771429135725,6.41978541,83.578,83.524,10.7791]
[1771429135941,10.7731,83.571,83.524,10.7791]
[1771429137526,6.41978541,83.578,83.501,6.92855665]
[1771429138727,6.12646802,83.58,83.501,6.92855665]
[1771429138728,6.781949,83.57,83.519,10.7797]
[1771429139729,10.7736,83.567,83.519,10.7797]
[1771429140528,6.781949,83.559,83.501,6.92855665]
[1771429140924,6.781949,83.579,83.501,6.92855665]
[1771429141324,6.781949,83.579,83.5,6.12646802]
[1771429141325,6.781949,83.578,83.531,10.7781]
[1771429141526,6.781949,83.578,83.518,6.57965302]
[1771429141727,6.781949,83.578,83.521,6.57965302]
[1771429142037,6.781949,83.599,83.54,10.777]
[1771429142534,10.7707,83.59,83.549,10.7758]
[1771429142838,10.7707,83.59,83.521,6.57965302]
[1771429143030,17.552649,83.59,83.521,6.57965302]
[1771429143636,10.7716,83.582,83.54,10.7769]
[1771429143935,6.781949,83.59,83.521,6.57965302]
[1771429144534,10.7712,83.585,83.521,6.57965302]
[1771429145832,17.553149,83.585,83.521,6.57965302]
[1771429146032,10.7717,83.581,83.521,6.57965302]
[1771429147231,6.781949,83.584,83.543,10.7766]
[1771429148636,6.12646802,83.6,83.503,76.72]
[1771429148637,10.7693,83.6,83.555,10.775]
[1771429148828,6.781949,83.599,83.542,6.57965302]
[1771429150736,6.781949,83.599,83.564,10.7738]
[1771429151040,114.7857345,83.83,83.551,6.57965302]
[1771429151041,6.781949,83.634,83.551,6.57965302]
[1771429151240,6.781949,83.634,83.571,6.57965302]
[1771429151640,6.781949,83.629,83.551,6.57965302]
[1771429152836,6.781949,83.628,83.578,10.772]
[1771429153032,6.781949,83.628,83.551,6.57965302]
[1771429153233,6.12646802,83.63,83.551,6.57965302]
[1771429153234,6.781949,83.617,83.551,6.57965302]
[1771429153842,6.781949,83.615,83.562,10.7742]
[1771429154647,10.7677,83.613,83.562,10.7742]
[1771429154847,6.63952199,83.612,83.562,10.7742]
[1771429155046,6.63952199,83.589,83.506,6.18110411]
[1771429155344,6.63952199,83.586,83.506,6.18110411]
[1771429155744,6.63952199,83.579,83.506,6.18110411]
[1771429156346,6.63952199,83.577,83.506,6.18110411]
[1771429157042,6.12646802,83.58,83.489,6.18110411]
[1771429157043,6.63952199,83.575,83.489,6.18110411]
[1771429157242,6.63952199,83.559,83.489,6.18110411]
[1771429157647,6.63952199,83.557,83.489,6.18110411]
[1771429157949,6.12646802,83.56,83.489,6.18110411]
[1771429157950,6.12646802,83.57,83.489,6.18110411]
[1771429158142,6.63952199,83.569,83.489,6.18110411]
[1771429159648,6.63952199,83.566,83.51,10.7808]
[1771429160040,6.63952199,83.559,83.51,10.7808]
[1771429160352,6.63952199,83.559,83.489,6.18110411]
[1771429160850,6.63952199,83.553,83.489,6.18110411]
[1771429162146,6.63952199,83.553,83.5,6.18110411]
[1771429162347,447.0,83.625,83.501,6.18110411]
[1771429162348,6.14143163,83.57,83.501,6.18110411]
[1771429162554,6.63952199,83.587,83.501,6.18110411]
[1771429162847,6.14143163,83.57,83.529,10.7783]
[1771429163149,6.14143163,83.57,83.501,6.18110411]
[1771429163150,6.63952199,83.569,83.501,6.18110411]
[1771429163347,6.63952199,83.569,83.484,6.18110411]
[1771429163543,10.7758,83.55,83.502,10.7818]
[1771429163852,6.63952199,83.549,83.484,6.18110411]
[1771429164048,6.63952199,83.549,83.46,6.14143163]
[1771429164049,6.63952199,83.529,83.466,6.18110411]
[1771429164354,6.14143163,83.53,83.466,6.18110411]
[1771429164355,6.63952199,83.528,83.466,6.18110411]
[1771429164750,6.63952199,83.528,83.45,6.14143163]
[1771429164952,6.63952199,83.519,83.447,83.16110411]
[1771429165150,6.63952199,83.519,83.464,6.18110411]
[1771429165550,6.63952199,83.519,83.469,10.7861]
[1771429166453,6.63952199,83.519,83.476,10.7852]
[1771429166852,6.63952199,83.519,83.448,6.18110411]
[1771429167053,6.63952199,83.519,83.449,77.82]
[1771429167449,6.63952199,83.517,83.468,451.51077112]
[1771429167654,6.63952199,83.509,83.468,440.72457112]
[1771429168053,6.63952199,83.509,83.475,15.81684654]
[1771429168257,6.63952199,83.509,83.475,5.03144654]
[1771429168753,6.63952199,83.507,83.448,6.18110411]
[1771429168956,6.63952199,83.499,83.444,78.3]
[1771429169658,6.63952199,83.498,83.43,6.18110411]
[1771429170353,6.63952199,83.517,83.446,6.18110411]
[1771429171659,6.63952199,83.517,83.469,10.7861]
[1771429172650,6.63952199,83.515,83.469,10.7861]
[1771429172853,6.63952199,83.515,83.477,10.7851]
[1771429173058,6.14143163,83.53,83.477,10.7851]
[1771429173258,10.7788,83.526,83.477,10.7851]
[1771429173659,17.41832199,83.526,83.477,10.7851]
[1771429173959,6.14143163,83.53,83.486,10.7839]
[1771429175357,6.63952199,83.536,83.486,10.7839]
[1771429175855,6.63952199,83.533,83.486,10.7839]
[1771429176052,6.63952199,83.533,83.467,6.18110411]
[1771429176359,10.7759,83.549,83.467,6.18110411]
[1771429176563,6.63952199,83.548,83.471,6.18110411]
[1771429176957,6.63952199,83.548,83.505,10.7815]
[1771429177161,6.63952199,83.548,83.493,6.18110411]
[1771429177366,6.63952199,83.564,83.493,6.18110411]
[1771429177659,6.63952199,83.564,83.515,10.7802]
[1771429178060,6.63952199,83.564,83.493,6.18110411]
[1771429178061,6.63952199,83.564,83.514,10.7803]
[1771429178459,6.63952199,83.564,83.493,6.18110411]
[1771429178759,6.63952199,83.564,83.524,10.779]
[1771429180961,10.7722,83.578,83.514,6.18110411]
[1771429181165,10.7722,83.578,83.456,33.4916622]
[1771429181166,6.63952199,83.58,83.533,6.18110411]
[1771429181464,5.0,83.585,83.533,6.18110411]
[1771429181959,5.0,83.585,83.551,10.7755]
[1771429182564,5.0,83.585,83.531,6.18110411]
[1771429182962,5.0,83.585,83.539,10.7771]
[1771429183366,11.63952199,83.585,83.531,6.18110411]
[1771429184665,11.63952199,83.585,83.545,10.7763]
[1771429185863,5.9100897,83.584,83.545,10.7763]
[1771429186366,5.0,83.585,83.553,10.7753]
[1771429186966,5.0,83.585,83.545,10.7764]
[1771429187171,6.14143163,83.6,83.531,6.18110411]
[1771429187366,5.9100897,83.599,83.531,6.18110411]
[1771429187770,5.9100897,83.599,83.557,10.7748]
[1771429188364,5.9100897,83.599,83.549,10.7759]
[1771429188567,5.9100897,83.589,83.53,5.86286274]
[1771429188771,5.9100897,83.605,83.531,5.86286274]
[1771429189660,5.9100897,83.605,83.554,5.86286274]
[1771429190665,5.9100897,83.605,83.568,10.7734]
[1771429191768,12.05152133,83.62,83.554,5.86286274]
[1771429192165,5.9100897,83.62,83.554,5.86286274]
[1771429192470,5.9100897,83.633,83.569,5.86286274]
[1771429193569,12.05152133,83.65,83.585,5.86286274]
[1771429194071,5.9100897,83.65,83.605,10.7686]
[1771429195064,6.14143163,83.67,83.6,5.86286274]
[1771429195065,5.9100897,83.669,83.6,5.86286274]
[1771429195667,5.9100897,83.684,83.617,5.86286274]
[1771429196177,5.0,83.735,83.589,179.5239]
[1771429196178,5.9100897,83.707,83.654,10.7622]
[1771429196472,5.9100897,83.703,83.641,5.86286274]
[1771429196969,5.9100897,83.703,83.644,10.7635]
[1771429197171,5.9100897,83.703,83.641,5.86286274]
[1771429197476,6.14143163,83.72,83.641,5.86286274]
[1771429197675,6.14143163,83.72,83.659,10.7616]
[1771429197867,5.86287432,83.703,83.659,10.7616]
[1771429198072,5.86287432,83.703,83.641,5.86286274]
[1771429198875,5.86287432,83.699,83.641,5.86286274]
[1771429199371,5.86287432,83.697,83.611,6.20593182]
[1771429199767,5.86287432,83.697,83.627,6.20593182]
[1771429199975,6.14143163,83.71,83.631,6.20593182]
[1771429200173,1.51036536,83.704,83.649,6.20593182]
[1771429200377,6.536e-05,83.704,83.65,6.14143163]
[1771429200575,6.536e-05,83.704,83.65,12.34736345]
[1771429200765,6.536e-05,83.704,83.674,10.7597]
[1771429201171,6.536e-05,83.704,83.682,10.7587]
[1771429201466,6.536e-05,83.704,83.667,6.20593182]
[1771429201665,5.86293968,83.704,83.648,6.20593182]
[1771429201868,5.86293968,83.704,83.604,21.5374]
[1771429201869,5.86293968,83.704,83.629,6.20593182]
[1771429202273,5.86293968,83.704,83.669,10.7604]
[1771429202479,5.86293968,83.704,83.649,6.20593182]
[1771429202480,6.536e-05,83.704,83.649,6.20593182]
[1771429202876,6.536e-05,83.704,83.666,6.20593182]
[1771429203183,0.20006536,83.735,83.666,6.20593182]
[1771429203384,0.20006536,83.735,83.693,10.7572]
[1771429204078,0.20006536,83.735,83.682,6.20593182]
[1771429204079,6.536e-05,83.735,83.682,6.20593182]